Cogmind - Beta 10.2 @@@ ROGUE MODE // 2021.07.03 @ 10:07:03 Player: HabNab Result: Destroyed by as-25312 with Assembled Heavy Rifle Performance ------------- Evolutions (0) 0 Regions Visited (4) 800 Robots Destroyed (7) 35 Value Destroyed (255) 255 Prototype IDs (1) 20 Alien Tech Used (0) 0 Bonus (300) 300 TOTAL SCORE: 1410 Bonus ------- Aligned with FarCom 300 Cogmind --------- Core Integrity 0/250 Matter 167/300 Energy 250/250 System Corruption 0% Temperature Cool (0) Movement Core (300) Ox5 Location -9/Mines Parts ------- > --- POWER (1) -------- Ion Engine > --- PROPULSION (2) --- (None) > --- UTILITY (2) ------ Medium Storage Unit 0b10 Alert Chip > --- WEAPON (2) ------- Assault Rifle Assault Rifle > --- INVENTORY (8) ---- Ion Engine Visual Processing Unit Faulty Experimental Sensor Array Seismic Analyzer Mining Laser Peak State ------------ > --- POWER ------------ Ion Engine > --- PROPULSION ------- Aluminum Leg Aluminum Leg > --- UTILITY ---------- Small Storage Unit 0b10 Alert Chip > --- WEAPON ----------- Light Assault Rifle Grenade Launcher > --- INVENTORY -------- Ion Engine Visual Processing Unit Experimental Sensor Array Assault Rifle Assault Rifle Mining Laser [Rating: 13] Favorites ----------- Power Ion Engine Engine Ion Engine Propulsion Aluminum Leg Treads Light Treads Leg Aluminum Leg Wheel Wheel Utility Small Storage Unit Device Sensor Array Storage Small Storage Unit Processor 0b10 Alert Chip Weapon Light Assault Rifle Ballistic Gun Light Assault Rifle Launcher Grenade Launcher Build | -11 -10 -10 -10 -9 ------- Run | Scr Mat Min Exi Min Slots Evolved . | . . . . . Power . | . . . . . Propulsion . | . . . . . Utility . | . . . . . Weapon . | . . . . . Parts Attached 19 | 8 5 1 3 2 Power 2 | 1 1 . . . Engine 2 | 1 1 . . . Core . | . . . . . Reactor . | . . . . . Propulsion 6 | 4 2 . . . Treads 2 | 2 . . . . Leg 2 | . 2 . . . Wheel 2 | 2 . . . . Hover . | . . . . . Flight . | . . . . . Utility 5 | 1 1 . 3 . Device 1 | . 1 . . . Storage 3 | 1 . . 2 . Processor 1 | . . . 1 . Hackware . | . . . . . Protection . | . . . . . Artifact . | . . . . . Weapon 6 | 2 1 1 . 2 Energy Gun . | . . . . . Energy Cannon . | . . . . . Ballistic Gun 5 | 2 1 . . 2 Ballistic Cannon . | . . . . . Launcher 1 | . . 1 . . Special Weapon . | . . . . . Impact Weapon . | . . . . . Slashing Weapon . | . . . . . Piercing Weapon . | . . . . . Special Melee Weapon . | . . . . . Unidentified Prototypes 1 | . . . 1 . Parts Lost 5 | . 1 . . 4 Power . | . . . . . Propulsion 3 | . 1 . . 2 Utility . | . . . . . Weapon 2 | . . . . 2 Highest Loss Streak 3 | . 1 . . 3 Average Slot Usage (%) 95 | . 87 100 100 82 Engine 14 | . 14 14 14 14 Treads 4 | . 15 . . . Leg 22 | . 11 28 28 12 Device 7 | . 2 14 6 . Storage 14 | . 14 14 14 14 Processor 3 | . . . 7 14 Ballistic Gun 18 | . 28 14 14 16 Launcher 9 | . . 14 14 9 Naked Turns . | . . . . . Heaviest Build 17 | 13 13 14 17 17 Greatest Support 40 | 40 40 20 20 20 Greatest Overweight (x) 1 | . 1 . . 1 Average Overweight (x) . | . . . . . Largest Inventory Capacity 8 | 6 6 6 8 8 Average Capacity 6 | 5 6 6 6 8 Most Carried 7 | 4 6 6 6 7 Average Carried 5 | 2 5 5 5 6 Final Capacity 8 | 6 6 6 8 8 Final Carried 6 | 4 6 6 6 5 Class Distribution -------------------- 100% | Mutant Dominant Class ---------------- Mutant | -10/Materials Mutant | -10/Mines Mutant | -10/Exiles Mutant | -9/Mines Resources | -11 -10 -10 -10 -9 ----------- Run | Scr Mat Min Exi Min Matter Collected 497 | 213 222 29 . 33 Remotely . | . . . . . Salvage Created 233 | . 138 59 . 36 Parts 11 | . 8 1 . 2 Haulers Intercepted . | . . . . . Recyclers Shooed . | . . . . . Parts Field Recycled . | . . . . . Retrieved Matter . | . . . . . Parts Self-Destructed . | . . . . . Prevented . | . . . . . Kills | -11 -10 -10 -10 -9 ------- Run | Scr Mat Min Exi Min Combat Hostiles Destroyed 11 | . 3 2 . 6 Guns 4 | . 3 . . 1 AOE 7 | . . 2 . 5 Classes Destroyed 4 | . 2 . . 2 Watcher 1 | . 1 . . . Swarmer 1 | . . . . 1 Grunt 5 | . 3 2 . . Assembled 5 | . . . . 5 Best Kill Streak 5 | . 3 2 . 5 Combat Bots Only 5 | . 3 2 . 5 Max Kills in Single Turn 2 | . 1 1 . 2 Gunslinging . | . . . . . Exploded 2 | . . 1 . 2 Melee . | . . . . . Uniques/NPCs Destroyed . | . . . . . Combat | -11 -10 -10 -10 -9 -------- Run | Scr Mat Min Exi Min Damage Taken 1123 | . 577 17 . 529 Core 260 | . 118 . . 142 Absorbed by Shields . | . . . . . Core Remaining (%) 100 | 100 . . . . Volleys Fired 42 | . 22 3 . 17 Largest 2 | . 2 2 . 2 Hottest 50 | . 40 50 . 50 Shots Fired 83 | . 44 6 . 33 Gun 75 | . 44 3 . 28 Cannon . | . . . . . Launcher 8 | . . 3 . 5 Special . | . . . . . Kinetic 75 | . 44 3 . 28 Thermal . | . . . . . Explosive 8 | . . 3 . 5 Electromagnetic . | . . . . . Robot Hit Streak 11 | . 11 3 . 4 Robot Miss Streak 4 | . 2 2 . 4 Penetration Max . | . . . . . Secondary Targets 1 | . 1 . . . Max Gunslinging Chain 1 | . 1 . . . Shots Hit Robots 54 | . 33 4 . 17 Core Hits 27 | . 10 5 . 12 Critical Hits . | . . . . . Critical Kills . | . . . . . Critical Parts Destroyed . | . . . . . Melee Attacks . | . . . . . Impact . | . . . . . Slashing . | . . . . . Piercing . | . . . . . Sneak Attacks . | . . . . . Combat Hostiles . | . . . . . Follow-up Attacks . | . . . . . Damage Inflicted 985 | . 422 138 . 425 Guns 589 | . 422 8 . 159 Cannons . | . . . . . Explosions 396 | . . 130 . 266 Melee . | . . . . . Ramming . | . . . . . Kinetic 589 | . 422 8 . 159 Thermal . | . . . . . Explosive 396 | . . 130 . 266 Electromagnetic . | . . . . . Impact . | . . . . . Slashing . | . . . . . Piercing . | . . . . . Highest Corruption . | . . . . . Average Corruption . | . . . . . Corruption Purged . | . . . . . Overload Shots . | . . . . . Overflow Damage 17 | . . . . 17 Projectiles . | . . . . . Explosions 17 | . . . . 17 Melee . | . . . . . Knockbacks . | . . . . . Impact . | . . . . . Kinetic . | . . . . . Secondary . | . . . . . Self-Inflicted Damage 58 | . . . . 58 Shots 2 | . . . . 2 Rammed . | . . . . . Targets Rammed . | . . . . . Kicked . | . . . . . Crushed . | . . . . . Highest Temperature 40 | . 36 19 . 40 Average Temperature 13 | . 12 10 . 20 Received Heat Transfer 359 | . 330 9 . 20 Siege Activations . | . . . . . Robots Corrupted . | . . . . . Combat Hostiles . | . . . . . Parts Fried . | . . . . . Impact Corruptions . | . . . . . Robots Melted . | . . . . . Combat Hostiles . | . . . . . Parts Melted . | . . . . . Heat Transferred . | . . . . . Parts Sabotaged . | . . . . . Parts Stolen . | . . . . . Parts Stripped . | . . . . . Power Chain Reactions . | . . . . . Missiles Intercepted . | . . . . . Alert | -11 -10 -10 -10 -9 ------- Run | Scr Mat Min Exi Min Peak Influence 137 | . 137 118 . 50 Initial 53 | . . 53 . . Average 64 | . 67 83 . 23 Maximum Alert Level . | . . . . . Low Security (%) 100 | 100 100 100 . 100 Level 1 . | . . . . . Level 2 . | . . . . . Level 3 . | . . . . . Level 4 . | . . . . . Level 5 . | . . . . . High Security . | . . . . . Max Security . | . . . . . Squads Dispatched 3 | . 3 . . . Investigation 1 | . 1 . . . Extermination . | . . . . . Reinforcement 2 | . 2 . . . Assault . | . . . . . Garrison . | . . . . . Intercept . | . . . . . Construction Impeded . | . . . . . Haulers Reinforced . | . . . . . Stealth | -11 -10 -10 -10 -9 --------- Run | Scr Mat Min Exi Min Distress Signals 1 | . 1 . . . Communications Jammed . | . . . . . Distress Signals . | . . . . . Times Spotted 29 | . 8 1 . 20 Peak Tracking Total 16 | . 4 1 . 16 Tactical Retreats 3 | . 1 . . 2 Traps | -11 -10 -10 -10 -9 ------- Run | Scr Mat Min Exi Min Traps Triggered . | . . . . . Indirectly . | . . . . . Trap Hack Attempts . | . . . . . Triggered . | . . . . . Disarmed . | . . . . . Reprogrammed . | . . . . . Reused . | . . . . . Traps Extracted . | . . . . . Installed . | . . . . . Triggered . | . . . . . Machines | -11 -10 -10 -10 -9 ---------- Run | Scr Mat Min Exi Min Machines Disabled 2 | . 1 1 . . Max in Single Turn 1 | . 1 1 . . Machines Sabotaged . | . . . . . Garrisons Compromised . | . . . . . Overloaded Fab Kills . | . . . . . Fab Network Shutdowns . | . . . . . Hacking | -11 -10 -10 -10 -9 --------- Run | Scr Mat Min Exi Min Machines Accessed 6 | . 4 1 1 . Terminals 5 | . 4 1 . . Fabricators . | . . . . . Repair Stations . | . . . . . Recycling Units . | . . . . . Scanalyzers . | . . . . . Garrison Access . | . . . . . Total Hacks 21 | . 10 2 9 . Successful 12 | . 3 . 9 . Failed 9 | . 7 2 . . Catastrophic 1 | . . 1 . . Database Lockouts . | . . . . . Manual 4 | . 3 . 1 . Terminals 12 | . 10 2 . . Fabricators . | . . . . . Repair Stations . | . . . . . Recycling Units . | . . . . . Scanalyzers . | . . . . . Garrison Access . | . . . . . Terminal Hacks 12 | . 3 . 9 . Record 9 | . . . 9 . Robot Analysis 1 | . 1 . . . Locate Traps 1 | . 1 . . . Recall Reinforcements 1 | . 1 . . . Fabricator Hacks . | . . . . . Repair Station Hacks . | . . . . . Recycling Unit Hacks . | . . . . . Scanalyzer . | . . . . . Garrison Access Hacks . | . . . . . Unauthorized Hacks . | . . . . . Terminals . | . . . . . Fabricators . | . . . . . Repair Stations . | . . . . . Recycling Units . | . . . . . Scanalyzers . | . . . . . Garrison Access . | . . . . . Data Cores Recovered . | . . . . . Used . | . . . . . Hacking Detections 5 | . 4 1 . . Full Trace Events . | . . . . . Feedback Events . | . . . . . Feedback Blocked . | . . . . . Robot Schematics Acquired . | . . . . . Robots Built . | . . . . . Matter . | . . . . . Time . | . . . . . Total Robot Build Rating . | . . . . . Part Schematics Acquired . | . . . . . Parts Built . | . . . . . Matter . | . . . . . Time . | . . . . . Total Part Build Rating . | . . . . . Parts Repaired . | . . . . . Time . | . . . . . Parts Recycled . | . . . . . Recycled Matter . | . . . . . Retrieved Matter . | . . . . . Retrieved Components . | . . . . . Parts Scanalyzed . | . . . . . Part Schematics Acquired . | . . . . . Parts Damaged . | . . . . . Bothacking | -11 -10 -10 -10 -9 ------------ Run | Scr Mat Min Exi Min Used RIF Installer . | . . . . . Robots Hacked . | . . . . . Non-combat . | . . . . . Combat . | . . . . . Robot Hacks Applied . | . . . . . Relay Couplers Released . | . . . . . Robots Rewired . | . . . . . Allies Hacked . | . . . . . Hacks Repelled . | . . . . . Allies | -11 -10 -10 -10 -9 -------- Run | Scr Mat Min Exi Min Total Allies . | . . . . . Largest Group . | . . . . . Highest-Rated Group . | . . . . . Highest-Rated Ally . | . . . . . Total Orders . | . . . . . Ally Attacks . | . . . . . Total Damage . | . . . . . Kills . | . . . . . Allies Corrupted . | . . . . . Allies Melted . | . . . . . Intel | -11 -10 -10 -10 -9 ------- Run | Scr Mat Min Exi Min Robot Analysis Total 1 | . 1 . . . Derelict Logs Recovered 1 | . . 1 . . Drone Launches . | . . . . . Drone Recoveries . | . . . . . Exploration | -11 -10 -10 -10 -9 ------------- Run | Scr Mat Min Exi Min Turns Passed 1458 | 83 384 464 421 106 Spaces Moved 1022 | 52 214 369 345 42 Core 12 | 12 . . . . Treads 130 | 36 94 . . . Legs 876 | . 120 369 345 42 Wheels 4 | 4 . . . . Hover . | . . . . . Flight . | . . . . . Fastest Speed 50 | 50 120 120 120 120 Average Speed 124 | 129 137 120 120 134 Slowest Speed 160 | 160 160 120 120 150 Overloaded Moves . | . . . . . Propulsion Burnouts . | . . . . . Robots Hopped . | . . . . . Cave-ins Triggered . | . . . . . Exploration Rate (%) 42 | 4 48 70 72 17 Regions Visited 4 Branch Regions 3 Pre-discovered Areas 1 | . . 1 . . Known Exits Taken . | . . . . . Unknown Exits Taken 4 | 1 1 1 1 . Scrap Searched . | . . . . . Spaces Dug . | . . . . . Terrain Destroyed 73 | . . 20 . 53 Melee . | . . . . . Projectile . | . . . . . AOE 73 | . . 20 . 53 Terrain Rammed . | . . . . . Walls Destroyed . | . . . . . Machines Disabled . | . . . . . Actions | -11 -10 -10 -10 -9 --------- Run | Scr Mat Min Exi Min Total 1125 | 66 260 385 352 62 Wait 19 | . 10 9 . . Move 1018 | 51 213 368 344 42 Hop . | . . . . . Pick Up 15 | 5 5 2 2 1 Fast Attach 10 | 5 3 . 2 . Attach 5 | 3 . . . 2 Detach 2 | 2 . . . . Swap 4 | . 2 1 1 . Drop 10 | . 5 2 3 . Fire 42 | . 22 3 . 17 Melee . | . . . . . Ram . | . . . . . Kick . | . . . . . Crush . | . . . . . Escape Stasis . | . . . . . Rewire . | . . . . . Trap . | . . . . . Miscellaneous . | . . . . . Route ------- -11/Scrapyard -10/Materials -10/Mines -10/Exiles -9/Mines History --------- Turn | Location | Event 10 | -11/Scrapyard | Discovered new exit (range 15) 84 | -11/Scrapyard | Entered Materials 326 | -10/Materials | Build established: Mutant 403 | -10/Materials | Discovered new exit (range 16) 468 | -10/Materials | Entered Mines 560 | -10/Mines | Found a hidden stash of uninstalled traps 754 | -10/Mines | Learned location of Storage (-9) 873 | -10/Mines | Deemed a non-threat by the Exiles lab entrance 873 | -10/Mines | Discovered new exit (range 5) 898 | -10/Mines | Found a damaged Exp. Sensor Array with a note attached 901 | -10/Mines | Found Prototype Device 932 | -10/Mines | Entered Exiles 961 | -10/Exiles | Met 8R-AWN 982 | -10/Exiles | Met EX-HEX 1054 | -10/Exiles | Met EX-BIN 1068 | -10/Exiles | Aligned with FarCom system 1069 | -10/Exiles | Given EX-Vault access code 1118 | -10/Exiles | Opened EX-Vault 1125 | -10/Exiles | Found Prototype Processor 1125 | -10/Exiles | Identified 0b10 Alert Chip 1150 | -10/Exiles | Warned to stay clear of 0b10 Research branches 1231 | -10/Exiles | Met EX-DEC 1338 | -10/Exiles | Discovered new exit (range 14) 1353 | -10/Exiles | Left Exiles lab with 0b10 Alert Chip 1353 | -10/Exiles | Entered Mines 1354 | -9/Mines | Assembled infested the area 1359 | -9/Mines | Assisted by a Guerilla fighting off Assembled 1363 | -9/Mines | Core integrity fell below 50% 1424 | -9/Mines | Core integrity fell below 20% 1459 | -9/Mines | Destroyed by as-25312 with Assembled Heavy Rifle Last Messages --------------- 01374_ as-20352 destroyed. 01376_ S-10 Pest destroyed. 01379_ Aluminum Leg destroyed. 01390_ S-10 Pest destroyed. 01396_ Acquired 16 matter. 01402_ Acquired Seismic Analyzer. 01403_ Acquired 17 matter. 01405_ as-61000 destroyed. 01405_ Destroyed Asb. Hover Unit. 01405_ as-70424 destroyed. 01407_ as-47527 destroyed. 01410_ as-28195 destroyed. 01420_ The unstable cave ceiling collapses. 01422_ Grenade Launcher destroyed. 01422_ Destroyed Grenade Launcher. 01422_ Aluminum Leg destroyed. 01422_ Destroyed Aluminum Leg. 01429_ The unstable cave ceiling collapses. 01448_ Lgt. Assault Rifle destroyed. 01454_ as-42924 destroyed. Map ----- +----------------------------------------------------+ | ?????????????????????????????????????????????# ?? | | ?????????????????????????????????????????????# #?? | | ?????????????????????????????????????????????# #?? | | ?????????????????????????????????????????????# #?? | | ??????????????????????????????????????####?### #?? | | ?????????????????????????????? ???????#" # ### | | ?????????????????????????????? ?? #### " | | ?????????????????????????????? # | | ?????????????????????????????? ???????# # | | ?????????????????????????????? ???????## = % | | ?????????????????????????????? ????????## %= | | ?????????????????????????????? ?????????## | | ?????????????????????????????# #?????????# | | ?????????????????????????????# #??????????#% #### | | ?????????????????????????????# #?????????? #???? | | ?????????????????????????????# #??????????# #???# | | ?????????????????????????????# #?????????## #?? | | ????????????????????????####?# #?????????# ## | | ???????????????????????## ### #?????????# | | ???????????????????????# #?????????## = | | ???????????????????????## ### #########?## %= | | ??????????????????????## ### s ### [ | | ?????????????????????## ##### s%[ | | ?????????????????????# ##??# ## | | ?????????????????????# ##? ###### | | ?????????????????????## @ ## #????## | | ??????????????????????# ## """ #?????###### | | ??????????????????????# # ## """ #???????????# | | ??????????????????????## ## """ #????????????# | | ???????????????????????? a##### #????????????? | | ???????????????????????? #???#######????????????? | | ????????????????????????# #??????????????????????? | | ????????????????????????# #??????????????????????? | | ????????????????????????# #??????????????????????? | | ????????????????????????? ???????????????????????? | | ????????????????????????? ???????????????????????? | | ?????????????????????????#???????????????????????? | | ?????????????????????????????????????????????????? | | ?????????????????????????????????????????????????? | | ?????????????????????????????????????????????????? | | ?????????????????????????????????????????????????? | | ?????????????????????????????????????????????????? | | ?????????????????????????????????????????????????? | | ?????????????????????????????????????????????????? | | ?????????????????????????????????????????????????? | | ?????????????????????????????????????????????????? | | ?????????????????????????????????????????????????? | | ?????????????????????????????????????????????????? | | ?????????????????????????????????????????????????? | | ?????????????????????????????????????????????????? | +----------------------------------------------------+ Best States ------------- Heat Dissipation 25 Energy Generation 10 Energy Capacity 250 Matter Stores 296 Matter Capacity 300 Sight Range 16 Robot Scan Range 10 Terrain Scan Density 10 Evasion (%) 50 Recoil Reduction 2 Item Schematics ----------------- None Robot Schematics ------------------ None Fabricated ------------ Nothing Alien Tech Used ----------------- None Achievements -------------- None Challenges ------------ None Game ------ Seed DispersionCorruptionField Manual? 0 Play Time 00:12:55 Cumulative 15.2 hours Start 2021.07.03 @ 09:55:51 End 2021.07.03 @ 10:07:03 Sessions 1 Manual Loads 0 Difficulty Rogue Special Mode None Game No. 20 Rogue 20 Adventurer 0 Explorer 0 Win Type - Total 0 Types 0/0/0/0/0/0/0/0/0 Lore% 26 Gallery% 34 Achievement% 27 Wizard Run 0 Options --------- ASCII 0 Keyboard 0 Movement Mouse Keybinds 0 Fullscreen 2 Font 18/SmallcapsGlow Map View 76x50 Tactical HUD 1 Map Filters NONE Filters NONE Steam 1 RUN: ef3776c2-893b-43f2-9256-22312a537e50